[Event "Early-Titled-Tuesday-Blitz-September-12-2023"]
[Site "Chess.com"]
[Date "2023.09.12"]
[Round "2"]
[White "Leandro-Slagboom"]
[Black "jaskol95"]
[Result "0-1"]
[WhiteElo "2369"]
[BlackElo "2542"]
[TimeControl "180+1"]
[EndTime "8:18:22 PDT"]
[Termination "jaskol95 won on time"]

1. e4 {[%clk 0:03:00.9]} 1... d5 {[%clk 0:02:59.6]} 2. exd5 {[%clk 0:03:00.9]}
2... Nf6 {[%clk 0:02:58.7]} 3. Nf3 {[%clk 0:02:59.7]} 3... Bg4 {[%clk
0:02:58.3]} 4. Bb5+ {[%clk 0:02:57.2]} 4... Nbd7 {[%clk 0:02:51.7]} 5. h3 {[%clk
0:02:57.1]} 5... Bh5 {[%clk 0:02:50.9]} 6. Nc3 {[%clk 0:02:56.8]} 6... a6 {[%clk
0:02:50.8]} 7. Be2 {[%clk 0:02:55.9]} 7... Nb6 {[%clk 0:02:50.4]} 8. O-O {[%clk
0:02:54.1]} 8... Nbxd5 {[%clk 0:02:48.7]} 9. Nxd5 {[%clk 0:02:54.3]} 9... Nxd5
{[%clk 0:02:48.5]} 10. d4 {[%clk 0:02:54.2]} 10... e6 {[%clk 0:02:48.4]} 11. c4
{[%clk 0:02:52.2]} 11... Nf6 {[%clk 0:02:48.3]} 12. Bf4 {[%clk 0:02:52.1]} 12...
Bd6 {[%clk 0:02:48.1]} 13. Ne5 {[%clk 0:02:52.3]} 13... Bxe2 {[%clk 0:02:47.8]}
14. Qxe2 {[%clk 0:02:53.2]} 14... h6 {[%clk 0:02:45.5]} 15. Rad1 {[%clk
0:02:51.8]} 15... c6 {[%clk 0:02:45.5]} 16. Rfe1 {[%clk 0:02:25.5]} 16... Qc7
{[%clk 0:02:44.9]} 17. c5 {[%clk 0:02:11.4]} 17... Bxe5 {[%clk 0:02:42]} 18.
Bxe5 {[%clk 0:02:12.3]} 18... Qe7 {[%clk 0:02:40.8]} 19. Bd6 {[%clk 0:02:11.9]}
19... Qd7 {[%clk 0:02:39.1]} 20. Rd3 {[%clk 0:02:10.1]} 20... Nd5 {[%clk
0:02:38.3]} 21. Rg3 {[%clk 0:02:09.2]} 21... g6 {[%clk 0:02:34.1]} 22. Qe5
{[%clk 0:02:07.3]} 22... O-O-O {[%clk 0:02:32.5]} 23. Rb3 {[%clk 0:01:50.2]}
23... b5 {[%clk 0:02:27.7]} 24. a4 {[%clk 0:01:39.9]} 24... Kb7 {[%clk
0:02:27.3]} 25. axb5 {[%clk 0:01:36.2]} 25... axb5 {[%clk 0:02:26.7]} 26. Rf3
{[%clk 0:01:18.5]} 26... f6 {[%clk 0:01:41.3]} 27. Qe4 {[%clk 0:01:03.8]} 27...
f5 {[%clk 0:01:37.5]} 28. Qxe6 {[%clk 0:00:58.9]} 28... Qxe6 {[%clk 0:01:30.9]}
29. Rxe6 {[%clk 0:00:59.8]} 29... Rhe8 {[%clk 0:01:29.6]} 30. Rxg6 {[%clk
0:00:57.5]} 30... Re1+ {[%clk 0:01:30.4]} 31. Kh2 {[%clk 0:00:57.5]} 31... Re2
{[%clk 0:01:31.3]} 32. Rxf5 {[%clk 0:00:53.7]} 32... Rxb2 {[%clk 0:01:31]} 33.
Rf7+ {[%clk 0:00:48]} 33... Ka6 {[%clk 0:01:31.1]} 34. Bc7 {[%clk 0:00:40.2]}
34... Rc8 {[%clk 0:01:17.2]} 35. Rxc6+ {[%clk 0:00:27.2]} 35... Kb7 {[%clk
0:01:17.3]} 36. Rb6+ {[%clk 0:00:27.7]} 36... Nxb6 {[%clk 0:01:15.4]} 37. Bxb6+
{[%clk 0:00:27.6]} 37... Kc6 {[%clk 0:01:13.9]} 38. Rf5 {[%clk 0:00:18.6]} 38...
Rd2 {[%clk 0:01:10.1]} 39. Ba5 {[%clk 0:00:15.2]} 39... Rxd4 {[%clk 0:01:08.5]}
40. Kg3 {[%clk 0:00:11.3]} 40... Rd5 {[%clk 0:01:07.9]} 41. Rf6+ {[%clk
0:00:10.7]} 41... Kxc5 {[%clk 0:01:08.4]} 42. Rxh6 {[%clk 0:00:11.3]} 42... b4
{[%clk 0:01:04.6]} 43. Rh4 {[%clk 0:00:09.2]} 43... Rg8+ {[%clk 0:01:02.9]} 44.
Kh2 {[%clk 0:00:07.8]} 44... Rb8 {[%clk 0:01:03.4]} 45. Bxb4+ {[%clk 0:00:05.2]}
45... Rxb4 {[%clk 0:01:03.1]} 46. Rxb4 {[%clk 0:00:05.4]} 46... Kxb4 {[%clk
0:01:04]} 47. Kg3 {[%clk 0:00:04.8]} 47... Kc5 {[%clk 0:01:04.7]} 48. Kf4 {[%clk
0:00:05]} 48... Kd6 {[%clk 0:01:05.4]} 49. g4 {[%clk 0:00:04.5]} 49... Ke6
{[%clk 0:01:06]} 50. h4 {[%clk 0:00:04.7]} 50... Kf6 {[%clk 0:01:03.6]} 51. g5+
{[%clk 0:00:04.6]} 51... Kg6 {[%clk 0:01:04]} 52. Kg4 {[%clk 0:00:05.2]} 52...
Rd1 {[%clk 0:00:51.8]} 53. h5+ {[%clk 0:00:05.4]} 53... Kg7 {[%clk 0:00:52.4]}
54. Kf5 {[%clk 0:00:05.3]} 54... Rh1 {[%clk 0:00:51.6]} 55. h6+ {[%clk
0:00:05.2]} 55... Kf7 {[%clk 0:00:49.2]} 56. g6+ {[%clk 0:00:03]} 56... Kg8
{[%clk 0:00:49]} 57. Kg5 {[%clk 0:00:01.8]} 57... Rg1+ {[%clk 0:00:49.5]} 58.
Kf6 {[%clk 0:00:02.1]} 58... Rf1 {[%clk 0:00:46.9]} 59. h7+ {[%clk 0:00:02]}
59... Kh8 {[%clk 0:00:47.2]} 0-1

[Event "Early-Titled-Tuesday-Blitz-September-12-2023"]
[Site "Chess.com"]
[Date "2023.09.12"]
[Round "2"]
[White "aghasiyevkamal"]
[Black "assezde36"]
[Result "0-1"]
[WhiteElo "2547"]
[BlackElo "2817"]
[TimeControl "180+1"]
[EndTime "8:18:24 PDT"]
[Termination "assezde36 won on time"]

1. d4 {[%clk 0:02:57.3]} 1... Nf6 {[%clk 0:02:58.2]} 2. c4 {[%clk 0:02:56.7]}
2... g6 {[%clk 0:02:56.9]} 3. Nc3 {[%clk 0:02:55.1]} 3... Bg7 {[%clk 0:02:57.5]}
4. e4 {[%clk 0:02:53.3]} 4... O-O {[%clk 0:02:57.9]} 5. Be2 {[%clk 0:02:52.9]}
5... d6 {[%clk 0:02:48.9]} 6. Bg5 {[%clk 0:02:52.1]} 6... c5 {[%clk 0:02:43.2]}
7. d5 {[%clk 0:02:45.4]} 7... h6 {[%clk 0:02:42]} 8. Be3 {[%clk 0:02:41.1]} 8...
e6 {[%clk 0:02:36.2]} 9. Qd2 {[%clk 0:02:23.2]} 9... exd5 {[%clk 0:02:36.3]} 10.
cxd5 {[%clk 0:02:20.1]} 10... Re8 {[%clk 0:02:35]} 11. f3 {[%clk 0:02:18.7]}
11... a6 {[%clk 0:02:31.3]} 12. a4 {[%clk 0:02:18.1]} 12... Nbd7 {[%clk
0:02:31.6]} 13. h4 {[%clk 0:02:07.5]} 13... h5 {[%clk 0:02:27.7]} 14. Nh3 {[%clk
0:02:00]} 14... Ne5 {[%clk 0:02:24.9]} 15. Nf2 {[%clk 0:01:59.6]} 15... Bd7
{[%clk 0:02:18.7]} 16. Rg1 {[%clk 0:01:24.2]} 16... b5 {[%clk 0:02:15.2]} 17.
axb5 {[%clk 0:01:12]} 17... axb5 {[%clk 0:02:15]} 18. Rxa8 {[%clk 0:01:11.9]}
18... Qxa8 {[%clk 0:02:15.9]} 19. Nxb5 {[%clk 0:01:11.6]} 19... Bxb5 {[%clk
0:02:07.9]} 20. Bxb5 {[%clk 0:01:11]} 20... Rb8 {[%clk 0:02:08.4]} 21. Be2
{[%clk 0:01:10.6]} 21... Nfd7 {[%clk 0:01:45.6]} 22. Nd1 {[%clk 0:01:06.5]}
22... Nb6 {[%clk 0:01:39.9]} 23. Qc2 {[%clk 0:01:06]} 23... Qa4 {[%clk
0:01:17.8]} 24. b3 {[%clk 0:00:51.3]} 24... Qa3 {[%clk 0:00:57.6]} 25. Kf2
{[%clk 0:00:42.1]} 25... Nbd7 {[%clk 0:00:54.1]} 26. f4 {[%clk 0:00:24.5]} 26...
Ng4+ {[%clk 0:00:46.1]} 27. Bxg4 {[%clk 0:00:23.9]} 27... hxg4 {[%clk 0:00:47]}
28. Re1 {[%clk 0:00:14.3]} 28... Rxb3 {[%clk 0:00:42.7]} 29. Kg1 {[%clk
0:00:11.5]} 29... g3 {[%clk 0:00:25.9]} 30. e5 {[%clk 0:00:10.9]} 30... dxe5
{[%clk 0:00:25.5]} 31. f5 {[%clk 0:00:10.2]} 31... Qb4 {[%clk 0:00:19.9]} 32.
Rf1 {[%clk 0:00:09.3]} 32... Qxh4 {[%clk 0:00:18.8]} 33. Re1 {[%clk 0:00:08.1]}
33... Rb4 {[%clk 0:00:14.6]} 34. fxg6 {[%clk 0:00:04.3]} 34... Qh2+ {[%clk
0:00:13.7]} 35. Kf1 {[%clk 0:00:03.8]} 35... Qh1+ {[%clk 0:00:14.3]} 36. Bg1
{[%clk 0:00:04.3]} 36... Rf4+ {[%clk 0:00:14.3]} 37. Ke2 {[%clk 0:00:04.9]}
37... Qxg2+ {[%clk 0:00:14.9]} 38. Kd3 {[%clk 0:00:05.8]} 38... e4+ {[%clk
0:00:13.5]} 39. Rxe4 {[%clk 0:00:03.9]} 39... Qxe4+ {[%clk 0:00:14.2]} 0-1

[Event "Early-Titled-Tuesday-Blitz-September-12-2023"]
[Site "Chess.com"]
[Date "2023.09.12"]
[Round "2"]
[White "Rickstereo"]
[Black "TatjanaVasilevich"]
[Result "1-0"]
[WhiteElo "2432"]
[BlackElo "2558"]
[TimeControl "180+1"]
[EndTime "8:18:26 PDT"]
[Termination "Rickstereo won by checkmate"]

1. c4 {[%clk 0:03:00.9]} 1... Nf6 {[%clk 0:02:58.4]} 2. Nf3 {[%clk 0:03:00.5]}
2... e6 {[%clk 0:02:58.4]} 3. g3 {[%clk 0:02:59.5]} 3... b6 {[%clk 0:02:56.4]}
4. Bg2 {[%clk 0:02:59.4]} 4... Bb7 {[%clk 0:02:56.6]} 5. O-O {[%clk 0:02:57.7]}
5... Be7 {[%clk 0:02:54.1]} 6. Nc3 {[%clk 0:02:57.6]} 6... O-O {[%clk
0:02:54.1]} 7. Re1 {[%clk 0:02:58]} 7... d5 {[%clk 0:02:51.8]} 8. cxd5 {[%clk
0:02:56.5]} 8... exd5 {[%clk 0:02:51.8]} 9. d4 {[%clk 0:02:56.5]} 9... Ne4
{[%clk 0:02:51.2]} 10. Bf4 {[%clk 0:02:48.8]} 10... Nd7 {[%clk 0:02:50.4]} 11.
Rc1 {[%clk 0:02:47.5]} 11... Rc8 {[%clk 0:02:49.3]} 12. Qa4 {[%clk 0:02:44.9]}
12... a6 {[%clk 0:02:47.7]} 13. Ne5 {[%clk 0:02:34.2]} 13... Nxe5 {[%clk
0:02:46.9]} 14. Bxe5 {[%clk 0:02:31.3]} 14... Bf6 {[%clk 0:02:38.1]} 15. Nxe4
{[%clk 0:02:14.6]} 15... dxe4 {[%clk 0:02:35.7]} 16. Red1 {[%clk 0:02:14.5]}
16... Qe7 {[%clk 0:02:34.2]} 17. Bxf6 {[%clk 0:02:09.7]} 17... Qxf6 {[%clk
0:02:34.1]} 18. e3 {[%clk 0:02:05.2]} 18... Rfd8 {[%clk 0:02:31.8]} 19. Bh3
{[%clk 0:02:01.2]} 19... b5 {[%clk 0:02:13.3]} 20. Qc2 {[%clk 0:01:55.6]} 20...
h5 {[%clk 0:01:53.8]} 21. Bxc8 {[%clk 0:01:53.8]} 21... Rxc8 {[%clk 0:01:54.4]}
22. d5 {[%clk 0:01:52.2]} 22... Qf5 {[%clk 0:01:49.8]} 23. Qc5 {[%clk
0:01:36.5]} 23... h4 {[%clk 0:01:47.7]} 24. d6 {[%clk 0:01:26.7]} 24... Qf3
{[%clk 0:01:47.8]} 25. d7 {[%clk 0:01:22.6]} 25... h3 {[%clk 0:01:26.1]} 26.
d8=Q+ {[%clk 0:01:07.7]} 26... Rxd8 {[%clk 0:01:17.3]} 27. Rxd8+ {[%clk
0:01:06.2]} 27... Kh7 {[%clk 0:01:17.9]} 28. Kf1 {[%clk 0:01:06.4]} 28... Qg2+
{[%clk 0:01:11.6]} 29. Ke1 {[%clk 0:01:03.9]} 29... Qh1+ {[%clk 0:01:10.4]} 30.
Kd2 {[%clk 0:01:01.6]} 30... Qf3 {[%clk 0:01:11]} 31. Kc3 {[%clk 0:00:53.1]}
31... a5 {[%clk 0:01:09]} 32. Rc2 {[%clk 0:00:48.4]} 32... b4+ {[%clk
0:01:08.9]} 33. Kb3 {[%clk 0:00:41]} 33... Ba6 {[%clk 0:01:01.6]} 34. Rd5 {[%clk
0:00:35.1]} 34... Bd3 {[%clk 0:00:57.6]} 35. Rh5+ {[%clk 0:00:34.4]} 35... Kg8
{[%clk 0:00:57.7]} 36. Rd2 {[%clk 0:00:27.5]} 36... Qf6 {[%clk 0:00:49.1]} 37.
Qf5 {[%clk 0:00:25]} 37... a4+ {[%clk 0:00:45]} 38. Kxb4 {[%clk 0:00:22.8]}
38... Qb6+ {[%clk 0:00:44.9]} 39. Ka3 {[%clk 0:00:21.1]} 39... Qd6+ {[%clk
0:00:45.1]} 40. Qc5 {[%clk 0:00:21.8]} 40... Qe6 {[%clk 0:00:42.4]} 41. Re5
{[%clk 0:00:19.5]} 41... Qc8 {[%clk 0:00:40]} 42. Rxd3 {[%clk 0:00:19]} 42...
exd3 {[%clk 0:00:40.2]} 43. Qd4 {[%clk 0:00:19.5]} 43... Qa6 {[%clk 0:00:37.9]}
44. Rd5 {[%clk 0:00:19.5]} 44... c5 {[%clk 0:00:36.3]} 45. Rd8+ {[%clk 0:00:20]}
45... Kh7 {[%clk 0:00:36.6]} 46. Qe4+ {[%clk 0:00:20.7]} 46... Kh6 {[%clk
0:00:33.9]} 47. Qf4+ {[%clk 0:00:21.1]} 47... g5 {[%clk 0:00:31.7]} 48. Rd6+
{[%clk 0:00:20.8]} 48... Kg7 {[%clk 0:00:31.9]} 49. Qf6+ {[%clk 0:00:20.4]}
49... Kh7 {[%clk 0:00:31]} 50. Qh6+ {[%clk 0:00:20.8]} 50... Kg8 {[%clk
0:00:31]} 51. Rd8# {[%clk 0:00:21.5]} 1-0

[Event "Early-Titled-Tuesday-Blitz-September-12-2023"]
[Site "Chess.com"]
[Date "2023.09.12"]
[Round "2"]
[White "Zheenbekov86"]
[Black "El_Matador12"]
[Result "1-0"]
[WhiteElo "2416"]
[BlackElo "2670"]
[TimeControl "180+1"]
[EndTime "8:18:27 PDT"]
[Termination "Zheenbekov86 won on time"]

1. e4 {[%clk 0:02:59.8]} 1... c6 {[%clk 0:02:58.4]} 2. d4 {[%clk 0:02:59]} 2...
d5 {[%clk 0:02:58.4]} 3. exd5 {[%clk 0:02:58.1]} 3... cxd5 {[%clk 0:02:58.7]} 4.
Bd3 {[%clk 0:02:58.4]} 4... Nf6 {[%clk 0:02:57.7]} 5. h3 {[%clk 0:02:57.9]} 5...
Nc6 {[%clk 0:02:57.9]} 6. Nf3 {[%clk 0:02:57.7]} 6... Nb4 {[%clk 0:02:54.7]} 7.
Bb5+ {[%clk 0:02:52.4]} 7... Bd7 {[%clk 0:02:54.4]} 8. Be2 {[%clk 0:02:46.5]}
8... Bf5 {[%clk 0:02:50.7]} 9. Na3 {[%clk 0:02:45.9]} 9... e6 {[%clk 0:02:48.3]}
10. O-O {[%clk 0:02:45.1]} 10... Be7 {[%clk 0:02:47.8]} 11. c3 {[%clk
0:02:44.5]} 11... Nc6 {[%clk 0:02:47.8]} 12. Bf4 {[%clk 0:02:33]} 12... O-O
{[%clk 0:02:46.9]} 13. Nh4 {[%clk 0:02:29.2]} 13... Be4 {[%clk 0:02:46.5]} 14.
f3 {[%clk 0:02:27.2]} 14... Bg6 {[%clk 0:02:41.9]} 15. Nxg6 {[%clk 0:02:26.8]}
15... hxg6 {[%clk 0:02:42.8]} 16. Nc2 {[%clk 0:02:19.4]} 16... Rc8 {[%clk
0:02:38.5]} 17. Ne1 {[%clk 0:02:17.5]} 17... a6 {[%clk 0:02:23.7]} 18. Nd3
{[%clk 0:02:16.4]} 18... b5 {[%clk 0:02:23.8]} 19. b4 {[%clk 0:02:06.4]} 19...
Qb6 {[%clk 0:02:10.7]} 20. Nc5 {[%clk 0:02:03.8]} 20... e5 {[%clk 0:01:51.1]}
21. dxe5 {[%clk 0:01:52.8]} 21... Bxc5+ {[%clk 0:01:50.1]} 22. bxc5 {[%clk
0:01:52.7]} 22... Qxc5+ {[%clk 0:01:51]} 23. Kh2 {[%clk 0:01:50.3]} 23... Nh5
{[%clk 0:01:50.1]} 24. Bg5 {[%clk 0:01:39.1]} 24... Qxc3 {[%clk 0:01:45.2]} 25.
f4 {[%clk 0:01:37.1]} 25... Nd4 {[%clk 0:01:10.9]} 26. Bxh5 {[%clk 0:01:33.8]}
26... gxh5 {[%clk 0:01:11.8]} 27. Qxh5 {[%clk 0:01:30.8]} 27... Nf5 {[%clk
0:01:08.3]} 28. Bh4 {[%clk 0:01:04]} 28... Ne3 {[%clk 0:01:00.8]} 29. Bf6 {[%clk
0:00:41]} 29... Nxf1+ {[%clk 0:00:51.8]} 30. Rxf1 {[%clk 0:00:40.2]} 30... Qd3
{[%clk 0:00:50]} 31. f5 {[%clk 0:00:32.2]} 31... Qe3 {[%clk 0:00:15.6]} 32. Rf3
{[%clk 0:00:25.7]} 32... Qxf3 {[%clk 0:00:12.4]} 33. Qxf3 {[%clk 0:00:23.7]}
33... gxf6 {[%clk 0:00:11.5]} 34. Qg4+ {[%clk 0:00:18.1]} 34... Kh8 {[%clk
0:00:05.1]} 35. Qh5+ {[%clk 0:00:15.8]} 35... Kg7 {[%clk 0:00:04.8]} 36. Qg4+
{[%clk 0:00:15.8]} 36... Kh6 {[%clk 0:00:05.1]} 37. exf6 {[%clk 0:00:14.1]} 1-0

[Event "Early-Titled-Tuesday-Blitz-September-12-2023"]
[Site "Chess.com"]
[Date "2023.09.12"]
[Round "2"]
[White "LionKing2367890"]
[Black "Eagle_2019"]
[Result "0-1"]
[WhiteElo "2228"]
[BlackElo "2686"]
[TimeControl "180+1"]
[EndTime "8:18:27 PDT"]
[Termination "Eagle_2019 won by resignation"]

1. e4 {[%clk 0:03:00.9]} 1... c5 {[%clk 0:02:59.2]} 2. Nf3 {[%clk 0:02:58.7]}
2... e6 {[%clk 0:02:52.8]} 3. d4 {[%clk 0:02:58.6]} 3... cxd4 {[%clk 0:02:52.7]}
4. Nxd4 {[%clk 0:02:59.5]} 4... Nc6 {[%clk 0:02:52.9]} 5. c4 {[%clk 0:02:59.2]}
5... Nf6 {[%clk 0:02:52.9]} 6. Nc3 {[%clk 0:02:59.2]} 6... Bb4 {[%clk
0:02:52.9]} 7. Nxc6 {[%clk 0:02:57.8]} 7... bxc6 {[%clk 0:02:52.4]} 8. Bd3
{[%clk 0:02:58]} 8... e5 {[%clk 0:02:51.1]} 9. O-O {[%clk 0:02:57.5]} 9... O-O
{[%clk 0:02:49.8]} 10. h3 {[%clk 0:02:55.4]} 10... d6 {[%clk 0:02:46.6]} 11. Ne2
{[%clk 0:02:53.5]} 11... Bc5 {[%clk 0:02:41.4]} 12. Kh1 {[%clk 0:02:50]} 12...
Re8 {[%clk 0:02:35.4]} 13. a3 {[%clk 0:02:17.6]} 13... a5 {[%clk 0:02:32]} 14.
Bd2 {[%clk 0:02:15.6]} 14... Qb6 {[%clk 0:02:25.5]} 15. f4 {[%clk 0:02:00.7]}
15... exf4 {[%clk 0:02:20.3]} 16. Nxf4 {[%clk 0:01:59.8]} 16... Qxb2 {[%clk
0:02:16]} 17. Rb1 {[%clk 0:01:58.7]} 17... Qe5 {[%clk 0:02:14.4]} 18. Qc2 {[%clk
0:01:57.1]} 18... Ba6 {[%clk 0:02:01.8]} 19. Bc3 {[%clk 0:01:54.4]} 19... Bd4
{[%clk 0:02:01.4]} 20. Bxd4 {[%clk 0:01:45.5]} 20... Qxd4 {[%clk 0:02:02.3]} 21.
Ne2 {[%clk 0:01:46.1]} 21... Qe5 {[%clk 0:02:01.5]} 22. Rf5 {[%clk 0:01:45.8]}
22... Qe7 {[%clk 0:01:56.8]} 23. Rbf1 {[%clk 0:01:45.9]} 23... Bc8 {[%clk
0:01:45]} 24. R5f2 {[%clk 0:01:11.8]} 24... Be6 {[%clk 0:01:40.6]} 25. Nd4
{[%clk 0:01:11.3]} 25... Bd7 {[%clk 0:01:35.2]} 26. Qd2 {[%clk 0:00:45.8]} 26...
Qe5 {[%clk 0:01:31]} 27. Nf3 {[%clk 0:00:42]} 27... Qc5 {[%clk 0:01:29.2]} 28.
Qg5 {[%clk 0:00:36.6]} 28... Qxg5 {[%clk 0:01:22.7]} 29. Nxg5 {[%clk 0:00:35.7]}
29... h6 {[%clk 0:01:22]} 30. Nf3 {[%clk 0:00:33.7]} 30... Nxe4 {[%clk
0:01:21.2]} 31. Bxe4 {[%clk 0:00:31.2]} 31... Rxe4 {[%clk 0:01:22.1]} 32. Rd2
{[%clk 0:00:28.8]} 32... Rxc4 {[%clk 0:01:18.1]} 33. Rxd6 {[%clk 0:00:26.7]}
33... Be8 {[%clk 0:01:17.7]} 34. Ne5 {[%clk 0:00:23.6]} 34... Rc3 {[%clk
0:01:16.1]} 35. Rd4 {[%clk 0:00:17.1]} 35... Rxa3 {[%clk 0:01:10.3]} 36. Rc4
{[%clk 0:00:16.7]} 36... Re3 {[%clk 0:01:06.4]} 37. Nxc6 {[%clk 0:00:16.3]}
37... Bxc6 {[%clk 0:01:05.8]} 38. Rxc6 {[%clk 0:00:16.1]} 38... a4 {[%clk
0:01:04.6]} 39. Rc7 {[%clk 0:00:16.5]} 39... f6 {[%clk 0:00:57]} 40. Rd1 {[%clk
0:00:14.7]} 40... a3 {[%clk 0:00:54.6]} 41. Rdd7 {[%clk 0:00:14.7]} 41... Rg3
{[%clk 0:00:54.2]} 42. Kh2 {[%clk 0:00:14.3]} 42... Rg5 {[%clk 0:00:49.2]} 43.
h4 {[%clk 0:00:13.8]} 43... Rg4 {[%clk 0:00:49]} 44. Kh3 {[%clk 0:00:14.1]}
44... h5 {[%clk 0:00:48.8]} 45. Rd1 {[%clk 0:00:12.5]} 45... a2 {[%clk
0:00:48.4]} 46. Rcc1 {[%clk 0:00:12.5]} 46... Rb4 {[%clk 0:00:46.7]} 47. Ra1
{[%clk 0:00:13.4]} 47... Rb3+ {[%clk 0:00:45]} 48. Kh2 {[%clk 0:00:12.6]} 48...
Rb2 {[%clk 0:00:45.1]} 49. Kh3 {[%clk 0:00:11.8]} 49... Ra3+ {[%clk 0:00:44.6]}
50. g3 {[%clk 0:00:12]} 50... Rc3 {[%clk 0:00:41.8]} 51. Rd8+ {[%clk 0:00:08.1]}
51... Kh7 {[%clk 0:00:41.7]} 52. Re1 {[%clk 0:00:05.1]} 52... Rb1 {[%clk
0:00:39.8]} 53. Ree8 {[%clk 0:00:06]} 53... a1=Q {[%clk 0:00:39.7]} 54. Rh8+
{[%clk 0:00:05.8]} 54... Kg6 {[%clk 0:00:39.8]} 0-1

[Event "Early-Titled-Tuesday-Blitz-September-12-2023"]
[Site "Chess.com"]
[Date "2023.09.12"]
[Round "2"]
[White "Srisshhhtea"]
[Black "IwkooO"]
[Result "1-0"]
[WhiteElo "2426"]
[BlackElo "2639"]
[TimeControl "180+1"]
[EndTime "8:18:28 PDT"]
[Termination "Srisshhhtea won by checkmate"]

1. e4 {[%clk 0:03:00.9]} 1... e6 {[%clk 0:02:58.9]} 2. d4 {[%clk 0:03:00.5]}
2... d5 {[%clk 0:02:59.8]} 3. Nc3 {[%clk 0:02:59.1]} 3... dxe4 {[%clk
0:02:55.2]} 4. Nxe4 {[%clk 0:03:00]} 4... Nd7 {[%clk 0:02:55]} 5. Bd3 {[%clk
0:02:55.9]} 5... Ngf6 {[%clk 0:02:55.3]} 6. Ng3 {[%clk 0:02:54.1]} 6... c5
{[%clk 0:02:55.5]} 7. Nf3 {[%clk 0:02:51]} 7... cxd4 {[%clk 0:02:54.8]} 8. Nxd4
{[%clk 0:02:51.9]} 8... Nc5 {[%clk 0:02:55.5]} 9. Bb5+ {[%clk 0:02:51.5]} 9...
Bd7 {[%clk 0:02:55.8]} 10. O-O {[%clk 0:02:50.7]} 10... Be7 {[%clk 0:02:54.5]}
11. Re1 {[%clk 0:02:32.1]} 11... O-O {[%clk 0:02:53.9]} 12. Be3 {[%clk
0:02:27.3]} 12... Bxb5 {[%clk 0:02:46.8]} 13. Nxb5 {[%clk 0:02:25.6]} 13... a6
{[%clk 0:02:47.5]} 14. Nc3 {[%clk 0:02:22.1]} 14... Qc7 {[%clk 0:02:46.1]} 15.
Qf3 {[%clk 0:02:19.8]} 15... b5 {[%clk 0:02:44.1]} 16. Bf4 {[%clk 0:02:14.8]}
16... Qb6 {[%clk 0:02:28.1]} 17. Be5 {[%clk 0:02:13.9]} 17... Rac8 {[%clk
0:02:26.5]} 18. Rad1 {[%clk 0:02:02.7]} 18... Rfd8 {[%clk 0:02:15.6]} 19. Nce4
{[%clk 0:01:51.8]} 19... Ncxe4 {[%clk 0:02:09.5]} 20. Nxe4 {[%clk 0:01:52.7]}
20... Nxe4 {[%clk 0:01:57.3]} 21. Qxe4 {[%clk 0:01:53.6]} 21... Bc5 {[%clk
0:01:45.4]} 22. Qf4 {[%clk 0:01:42.6]} 22... f6 {[%clk 0:01:41.9]} 23. Bc3
{[%clk 0:01:35.3]} 23... e5 {[%clk 0:01:41.1]} 24. Qg3 {[%clk 0:01:30.8]} 24...
Rxd1 {[%clk 0:01:24.6]} 25. Rxd1 {[%clk 0:01:29.7]} 25... Rd8 {[%clk 0:01:25.5]}
26. Rxd8+ {[%clk 0:01:27.1]} 26... Qxd8 {[%clk 0:01:26.4]} 27. Qg4 {[%clk
0:01:25.9]} 27... Qd5 {[%clk 0:01:09.1]} 28. a3 {[%clk 0:01:20.2]} 28... f5
{[%clk 0:00:59.5]} 29. Qe2 {[%clk 0:01:17.6]} 29... e4 {[%clk 0:00:59.3]} 30. g3
{[%clk 0:01:13.3]} 30... g6 {[%clk 0:00:57.7]} 31. Bb4 {[%clk 0:01:04.8]} 31...
Bxb4 {[%clk 0:00:49]} 32. axb4 {[%clk 0:01:05.7]} 32... Qd4 {[%clk 0:00:38.9]}
33. c3 {[%clk 0:01:02.2]} 33... Qc4 {[%clk 0:00:20.3]} 34. Qd2 {[%clk
0:00:59.4]} 34... Qe6 {[%clk 0:00:20]} 35. Qd8+ {[%clk 0:00:55.2]} 35... Kg7
{[%clk 0:00:20.6]} 36. Qd4+ {[%clk 0:00:55.2]} 36... Kh6 {[%clk 0:00:21.2]} 37.
h4 {[%clk 0:00:53.4]} 37... Qc6 {[%clk 0:00:17]} 38. Qh8 {[%clk 0:00:49]} 38...
Qd6 {[%clk 0:00:15]} 39. Kg2 {[%clk 0:00:48.1]} 39... f4 {[%clk 0:00:11.7]} 40.
g4 {[%clk 0:00:35.4]} 40... g5 {[%clk 0:00:09.2]} 41. Qe8 {[%clk 0:00:23.5]}
41... gxh4 {[%clk 0:00:07]} 42. Qxe4 {[%clk 0:00:19.3]} 42... Qd2 {[%clk
0:00:02.5]} 43. Qf5 {[%clk 0:00:18.2]} 43... h3+ {[%clk 0:00:01.8]} 44. Kxh3
{[%clk 0:00:17.5]} 44... Qxf2 {[%clk 0:00:02.4]} 45. Qf6# {[%clk 0:00:16.8]} 1-0